[Event "3rd Vergani Cup 2018"]
[Site "Montebelluna"]
[Date "2019.01.02"]
[Round "?"]
[White "Di Benedetto, Edoardo"]
[Black "Gallana, Marco"]
[Result "1/2-1/2"]
[WhiteElo "2324"]
[BlackElo "2247"]
[PlyCount "115"]
[EventDate "2018.12.27"]
[EventType "swiss"]
[EventCountry "ITA"]
[TimeControl "5400+30"]
[WhiteClock "0:07:32"]

1. Nf3 {[%emt 0:08:55]} Nf6 {[%emt 0:00:00]} 2. b3 {[%emt 0:00:09]} g6 {[%emt 0:00:02]} 3. Bb2 {[%emt 0:00:08]} Bg7 {[%emt 0:00:21]} 4. c4 {[%emt 0:00:05]} c5 {[%emt 0:02:13]} 5. g3 {[%emt 0:00:17]} b6 {[%emt 0:00:24]} 6. Bg2 {[%emt 0:00:20]} Bb7 {[%emt 0:00:10]} 7. O-O {[%emt 0:00:05]} O-O {[%emt 0:00:12]} 8. Nc3 {[%emt 0:08:25]} d5 {[%emt 0:16:28]} 9. Nxd5 {[%emt 0:00:30]} Nxd5 {[%emt 0:00:21]} 10. Bxg7 {[%emt 0:00:05]} Kxg7 {[%emt 0:00:31]} 11. cxd5 {[%emt 0:00:07]} Qxd5 {[%emt 0:01:09]} 12. d4 {[%emt 0:00:25]} Na6 {[%emt 0:23:59]} 13. e4 {[%emt 0:07:49]} Qd6 {[%emt 0:02:39]} 14. d5 {[%emt 0:03:03]} e6 {[%emt 0:01:50]} 15. Nd2 {[%emt 0:02:33]} exd5 {[%emt 0:03:57]} 16. Nc4 {[%emt 0:00:24]} Qd7 {[%emt 0:12:43]} 17. exd5 {[%emt 0:00:05]} Rad8 {[%emt 0:01:42]} 18. Qd2 {[%emt 0:01:20]} Qf5 {[%emt 0:02:47]} 19. Ne3 {[%emt 0:00:53]} Qf6 {[%emt 0:00:29]} 20. Rad1 {[%emt 0:06:33]} h5 {[%emt 0:00:34]} 21. d6 {[%emt 0:05:47]} Bxg2 {[%emt 0:00:58]} 22. Kxg2 {[%emt 0:00:05]} Nb4 {[%emt 0:01:10]} 23. Nd5 {[%emt 0:00:59]} Nxd5 {[%emt 0:04:43]} 24. Qxd5 {[%emt 0:00:12]} Rd7 {[%emt 0:00:20]} 25. Rd3 {[%emt 0:05:03]} Re8 {[%emt 0:00:51]} 26. Qc6 {[%emt 0:03:31]} Red8 {[%emt 0:04:06]} 27. Rfd1 {[%emt 0:00:10]} h4 {[%emt 0:02:07]} 28. g4 {[%emt 0:00:11]} h3+ {[%emt 0:04:16]} 29. Rxh3 {[%emt 0:00:50]} Rxd6 {[%emt 0:00:08]} 30. Rxd6 {[%emt 0:00:06]} Qxd6 {[%emt 0:00:30]} 31. Qxd6 {[%emt 0:00:10]} Rxd6 {[%emt 0:00:09]} 32. Re3 {[%emt 0:01:24]} Rd2 {[%emt 0:01:02]} 33. a4 {[%emt 0:00:30]} Rd4 {[%emt 0:01:05]} 34. h3 {[%emt 0:45:51]} g5 {[%emt 0:13:04]} 35. Re7 {[%emt 0:00:00]} Rb4 {[%emt 0:00:30]} 36. Rxa7 {[%emt 0:01:00]} Rxb3 {[%emt 0:00:30]} 37. Rc7 {[%emt 0:00:30]} Rb4 {[%emt 0:00:30]} 38. a5 {[%emt 0:00:30]} bxa5 {[%emt 0:00:30]} 39. Rxc5 {[%emt 0:00:30]} f6 {[%emt 0:00:30]} 40. Rxa5 {[%emt 0:00:30]} Rb3 {[%emt 0:00:00]} 41. f3 {[%emt 0:00:30]} Kg6 {[%emt 0:01:00]} 42. Kg3 {[%emt 0:00:30]} Rc3 {[%emt 0:00:30]} 43. Rf5 {[%emt 0:00:30]} Rc1 {[%emt 0:00:30]} 44. h4 {[%emt 0:00:30]} gxh4+ {[%emt 0:00:30]} 45. Kxh4 {[%emt 0:00:30]} Rh1+ {[%emt 0:00:30]} 46. Kg3 {[%emt 0:00:30]} Ra1 {[%emt 0:00:30]} 47. Rb5 {[%emt 0:00:30]} Ra3 {[%emt 0:00:30]} 48. Rb4 {[%emt 0:00:00]} Kg5 {[%emt 0:00:30]} 49. Rb5+ {[%emt 0:01:00]} Kg6 {[%emt 0:00:00]} 50. Rd5 {[%emt 0:00:00]} Rb3 {[%emt 0:00:00]} 51. Kf4 {[%emt 0:00:00]} Rb4+ {[%emt 0:01:30]} 52. Ke3 {[%emt 0:01:30]} Rb3+ {[%emt 0:00:00]} 53. Ke4 {[%emt 0:00:00]} Rb4+ {[%emt 0:00:00]} 54. Ke3 {[%emt 0:00:00]} Rb3+ {[%emt 0:01:30]} 55. Rd3 {[%emt 0:01:30]} Rxd3+ {[%emt 0:00:00]} 56. Kxd3 {[%emt 0:00:00]} f5 {[%emt 0:00:00]} 57. Ke3 {[%emt 0:00:00]} fxg4 {[%emt 0:00:00]} 58. Ke4 {[%emt 0:01:30]} 1/2-1/2

[Event "3rd Vergani Cup 2018"]
[Site "Montebelluna"]
[Date "2019.01.02"]
[Round "?"]
[White "Di Benedetto, Edoardo"]
[Black "Baglan, Esat"]
[Result "1/2-1/2"]
[WhiteElo "2324"]
[BlackElo "2363"]
[PlyCount "82"]
[EventDate "2018.12.27"]
[EventType "swiss"]
[EventCountry "ITA"]
[TimeControl "5400+30"]
[WhiteClock "0:00:49"]
[BlackClock "0:02:00"]

1. d4 {[%emt 0:07:27]} Nf6 {[%emt 0:02:53]} 2. c4 {[%emt 0:00:07]} g6 {[%emt 0:00:38]} 3. g3 {[%emt 0:00:07]} Bg7 {[%emt 0:01:52]} 4. Bg2 {[%emt 0:00:08]} O-O {[%emt 0:00:06]} 5. Nf3 {[%emt 0:00:05]} c6 {[%emt 0:01:30]} 6. O-O {[%emt 0:00:06]} d5 {[%emt 0:00:07]} 7. Qb3 {[%emt 0:00:08]} Qb6 {[%emt 0:03:12]} 8. Nc3 {[%emt 0:00:34]} Rd8 {[%emt 0:06:42]} 9. Na4 {[%emt 0:03:42]} Qxb3 {[%emt 0:04:06]} 10. axb3 {[%emt 0:00:05]} Na6 {[%emt 0:00:25]} 11. c5 {[%emt 0:17:46]} Nd7 {[%emt 0:10:22]} 12. Bd2 {[%emt 0:08:57]} e5 {[%emt 0:02:12]} 13. e3 {[%emt 0:00:06]} exd4 {[%emt 0:07:34]} 14. exd4 {[%emt 0:00:15]} Nf8 {[%emt 0:00:45]} 15. Rfe1 {[%emt 0:06:28]} Bf5 {[%emt 0:02:37]} 16. Ne5 {[%emt 0:37:10]} Re8 {[%emt 0:07:13]} 17. f4 {[%emt 0:03:23]} f6 {[%emt 0:02:57]} 18. Nf3 {[%emt 0:00:08]} Be4 {[%emt 0:06:16]} 19. Nc3 {[%emt 0:09:08]} Bxf3 {[%emt 0:00:37]} 20. Rxe8 {[%emt 0:00:22]} Rxe8 {[%emt 0:00:21]} 21. Bxf3 {[%emt 0:00:08]} f5 {[%emt 0:00:07]} 22. Ne2 {[%emt 0:00:08]} Ne6 {[%emt 0:15:34]} 23. Bc3 {[%emt 0:00:10]} Ra8 {[%emt 0:00:26]} 24. Kf2 {[%emt 0:01:43]} Nac7 {[%emt 0:00:20]} 25. Ke3 {[%emt 0:00:11]} Nb5 {[%emt 0:00:41]} 26. Kd3 {[%emt 0:00:14]} Re8 {[%emt 0:06:30]} 27. Rf1 {[%emt 0:00:41]} h5 {[%emt 0:03:24]} 28. h3 {[%emt 0:00:24]} Kf7 {[%emt 0:00:08]} 29. Rh1 {[%emt 0:00:18]} Rh8 {[%emt 0:00:09]} 30. b4 {[%emt 0:01:53]} a6 {[%emt 0:00:30]} 31. h4 {[%emt 0:00:46]} Re8 {[%emt 0:05:03]} 32. Rd1 {[%emt 0:00:12]} Nf8 {[%emt 0:01:03]} 33. Bg2 {[%emt 0:01:04]} Nh7 {[%emt 0:00:35]} 34. Ng1 {[%emt 0:00:30]} Nf6 {[%emt 0:00:03]} 35. Nf3 {[%emt 0:01:05]} Ng4 {[%emt 0:01:02]} 36. Rf1 {[%emt 0:01:01]} Bf6 {[%emt 0:07:51]} 37. Ne5+ {[%emt 0:00:35]} Bxe5 {[%emt 0:01:44]} 38. dxe5 {[%emt 0:00:08]} Ke6 {[%emt 0:00:23]} 39. Bd4 {[%emt 0:00:22]} Ra8 {[%emt 0:00:46]} 40. Ra1 {[%emt 0:00:22]} Rd8 {[%emt 0:00:27]} 41. Bg1 {[%emt 0:00:23]} Rd7 {[%emt 0:00:30]} 1/2-1/2

[Event "3rd Vergani Cup 2018"]
[Site "Montebelluna"]
[Date "2019.01.02"]
[Round "?"]
[White "Dudin, Gleb"]
[Black "Can, Melih Kaan"]
[Result "1-0"]
[WhiteElo "2303"]
[BlackElo "2225"]
[PlyCount "139"]
[EventDate "2018.12.27"]
[EventType "swiss"]
[EventCountry "ITA"]
[TimeControl "5400+30"]
[WhiteClock "0:00:31"]
[BlackClock "0:01:13"]

1. e4 {[%emt 0:09:02]} c5 {[%emt 0:01:29]} 2. Nf3 {[%emt 0:00:52]} Nc6 {[%emt 0:02:01]} 3. Bb5 {[%emt 0:01:09]} d6 {[%emt 0:00:08]} 4. c3 {[%emt 0:03:53]} Bd7 {[%emt 0:00:07]} 5. O-O {[%emt 0:01:08]} Nf6 {[%emt 0:00:07]} 6. Re1 {[%emt 0:00:42]} a6 {[%emt 0:00:06]} 7. Ba4 {[%emt 0:02:17]} b5 {[%emt 0:01:51]} 8. Bc2 {[%emt 0:00:13]} Bg4 {[%emt 0:00:21]} 9. h3 {[%emt 0:01:20]} Bxf3 {[%emt 0:03:54]} 10. Qxf3 {[%emt 0:01:01]} g6 {[%emt 0:00:08]} 11. a4 {[%emt 0:14:48]} Rb8 {[%emt 0:32:29]} 12. Na3 {[%emt 0:08:42]} Nd7 {[%emt 0:04:02]} 13. Qe2 {[%emt 0:04:14]} b4 {[%emt 0:05:09]} 14. Nc4 {[%emt 0:01:13]} Bg7 {[%emt 0:02:01]} 15. Ne3 {[%emt 0:02:51]} a5 {[%emt 0:03:06]} 16. Kh1 {[%emt 0:14:02]} O-O {[%emt 0:00:07]} 17. f4 {[%emt 0:02:52]} e6 {[%emt 0:02:46]} 18. Ng4 {[%emt 0:04:27]} Qh4 {[%emt 0:08:21]} 19. Rf1 {[%emt 0:06:07]} Kh8 {[%emt 0:06:30]} 20. Qf2 {[%emt 0:04:35]} Qxf2 {[%emt 0:02:36]} 21. Rxf2 {[%emt 0:00:53]} f5 {[%emt 0:01:17]} 22. exf5 {[%emt 0:01:02]} gxf5 {[%emt 0:01:30]} 23. Nh2 {[%emt 0:02:01]} d5 {[%emt 0:05:28]} 24. Nf3 {[%emt 0:01:19]} Rbe8 {[%emt 0:01:10]} 25. Rf1 {[%emt 0:04:31]} c4 {[%emt 0:01:11]} 26. d4 {[%emt 0:03:07]} cxd3 {[%emt 0:00:58]} 27. Bxd3 {[%emt 0:00:01]} bxc3 {[%emt 0:00:36]} 28. bxc3 {[%emt 0:01:05]} Bxc3 {[%emt 0:03:14]} 29. Ra3 {[%emt 0:00:56]} Bf6 {[%emt 0:04:14]} 30. Bb5 {[%emt 0:00:20]} Rc8 {[%emt 0:00:10]} 31. Re3 {[%emt 0:00:37]} Nc5 {[%emt 0:00:47]} 32. Ng5 {[%emt 0:03:10]} Bxg5 {[%emt 0:06:19]} 33. fxg5 {[%emt 0:00:07]} Ne4 {[%emt 0:00:05]} 34. Bb2+ {[%emt 0:00:54]} Kg8 {[%emt 0:00:11]} 35. Kh2 {[%emt 0:00:30]} Kf7 {[%emt 0:01:18]} 36. g4 {[%emt 0:00:40]} Nb4 {[%emt 0:01:40]} 37. gxf5 {[%emt 0:00:43]} Rc2+ {[%emt 0:00:01]} 38. Re2 {[%emt 0:00:05]} Rfc8 {[%emt 0:00:09]} 39. fxe6+ {[%emt 0:01:16]} Kxe6 {[%emt 0:00:49]} 40. Kg1 {[%emt 0:00:32]} Rxe2 {[%emt 0:00:40]} 41. Bxe2 {[%emt 0:00:00]} Rc2 {[%emt 0:00:25]} 42. Bg4+ {[%emt 0:00:09]} Kd6 {[%emt 0:00:25]} 43. Bf6 {[%emt 0:00:43]} Nd3 {[%emt 0:00:59]} 44. Bf5 {[%emt 0:00:36]} Rc7 {[%emt 0:00:27]} 45. Bd8 {[%emt 0:01:12]} Rg7 {[%emt 0:00:22]} 46. h4 {[%emt 0:00:30]} Ndc5 {[%emt 0:00:42]} 47. Bxa5 {[%emt 0:00:30]} Nxg5 {[%emt 0:00:06]} 48. hxg5 {[%emt 0:00:18]} Rxg5+ {[%emt 0:00:02]} 49. Kh2 {[%emt 0:00:17]} Nxa4 {[%emt 0:00:48]} 50. Bd2 {[%emt 0:00:48]} Rg7 {[%emt 0:00:29]} 51. Bc2 {[%emt 0:00:38]} Nc5 {[%emt 0:00:59]} 52. Rf6+ {[%emt 0:00:31]} Kd7 {[%emt 0:00:30]} 53. Bf5+ {[%emt 0:00:30]} Ke7 {[%emt 0:00:01]} 54. Rh6 {[%emt 0:00:26]} Rf7 {[%emt 0:01:01]} 55. Bg5+ {[%emt 0:00:31]} Kf8 {[%emt 0:00:01]} 56. Bxh7 {[%emt 0:00:33]} Ne4 {[%emt 0:00:28]} 57. Be3 {[%emt 0:00:28]} Kg7 {[%emt 0:01:04]} 58. Rh3 {[%emt 0:00:28]} Rb7 {[%emt 0:00:33]} 59. Bd4+ {[%emt 0:00:29]} Nf6 {[%emt 0:00:31]} 60. Bf5 {[%emt 0:00:30]} Rf7 {[%emt 0:00:29]} 61. Be6 {[%emt 0:00:34]} Re7 {[%emt 0:00:30]} 62. Rg3+ {[%emt 0:00:24]} Kh6 {[%emt 0:00:22]} 63. Bf5 {[%emt 0:00:35]} Ne4 {[%emt 0:00:38]} 64. Rg6+ {[%emt 0:00:31]} Kh5 {[%emt 0:00:02]} 65. Rg8 {[%emt 0:00:22]} Rc7 {[%emt 0:00:58]} 66. Be3 {[%emt 0:00:38]} Rc2+ {[%emt 0:00:21]} 67. Kh3 {[%emt 0:00:30]} Nf2+ {[%emt 0:00:22]} 68. Kg3 {[%emt 0:00:27]} Ne4+ {[%emt 0:00:18]} 69. Bxe4 {[%emt 0:00:17]} dxe4 {[%emt 0:01:00]} 70. Rg5+ {[%emt 0:00:05]} 1-0

[Event "3rd Vergani Cup 2018"]
[Site "Montebelluna"]
[Date "2019.01.02"]
[Round "?"]
[White "Loiacono, Antonio"]
[Black "Orfini, Nicolo`"]
[Result "0-1"]
[WhiteElo "2293"]
[BlackElo "2156"]
[PlyCount "68"]
[EventDate "2018.12.27"]
[EventType "swiss"]
[EventCountry "ITA"]
[TimeControl "5400+30"]
[WhiteClock "0:12:51"]
[BlackClock "0:00:06"]

1. Nf3 {[%emt 0:00:22]} d6 {[%emt 0:15:19]} 2. c4 {[%emt 0:00:42]} e5 {[%emt 0:00:56]} 3. Nc3 {[%emt 0:01:39]} f5 {[%emt 0:00:16]} 4. d4 {[%emt 0:18:44]} e4 {[%emt 0:06:47]} 5. Ng1 {[%emt 0:00:53]} Nf6 {[%emt 0:01:22]} 6. h4 {[%emt 0:01:41]} Be7 {[%emt 0:12:57]} 7. Nh3 {[%emt 0:01:28]} c6 {[%emt 0:03:23]} 8. Nf4 {[%emt 0:01:47]} Na6 {[%emt 0:04:23]} 9. e3 {[%emt 0:06:19]} Nc7 {[%emt 0:00:39]} 10. Qb3 {[%emt 0:00:48]} O-O {[%emt 0:03:33]} 11. Be2 {[%emt 0:08:38]} Kh8 {[%emt 0:01:29]} 12. Bd2 {[%emt 0:05:15]} Rb8 {[%emt 0:04:15]} 13. O-O-O {[%emt 0:04:37]} Bd7 {[%emt 0:02:10]} 14. h5 {[%emt 0:01:38]} Ne6 {[%emt 0:01:25]} 15. g3 {[%emt 0:14:26]} b5 {[%emt 0:08:09]} 16. Qc2 {[%emt 0:10:04]} Nxf4 {[%emt 0:09:03]} 17. gxf4 {[%emt 0:01:07]} b4 {[%emt 0:00:33]} 18. Na4 {[%emt 0:02:47]} c5 {[%emt 0:01:59]} 19. dxc5 {[%emt 0:04:37]} dxc5 {[%emt 0:00:06]} 20. Rdg1 {[%emt 0:02:22]} Qa5 {[%emt 0:02:14]} 21. Bd1 {[%emt 0:03:11]} Qa6 {[%emt 0:00:27]} 22. Kb1 {[%emt 0:02:51]} Rbd8 {[%emt 0:01:12]} 23. Bc1 {[%emt 0:00:54]} Bc6 {[%emt 0:00:51]} 24. b3 {[%emt 0:00:55]} Bxa4 {[%emt 0:01:41]} 25. bxa4 {[%emt 0:00:05]} Nd7 {[%emt 0:00:24]} 26. Bb2 {[%emt 0:02:20]} Bf6 {[%emt 0:00:05]} 27. Rg5 {[%emt 0:01:57]} Bxg5 {[%emt 0:03:05]} 28. fxg5 {[%emt 0:00:07]} Kg8 {[%emt 0:15:17]} 29. h6 {[%emt 0:02:16]} g6 {[%emt 0:00:30]} 30. f3 {[%emt 0:00:30]} Qe6 {[%emt 0:00:30]} 31. fxe4 {[%emt 0:00:30]} fxe4 {[%emt 0:00:00]} 32. Rh4 {[%emt 0:00:00]} Ne5 {[%emt 0:01:00]} 33. Bc1 {[%emt 0:01:00]} Nd3 {[%emt 0:00:00]} 34. Bg4 {[%emt 0:00:24]} Qe5 {[%emt 0:00:00]} 0-1

[Event "3rd Vergani Cup 2018"]
[Site "Montebelluna"]
[Date "2019.01.02"]
[Round "?"]
[White "Ajay Krishna, S."]
[Black "Henderson de La Fuente, Lance"]
[Result "0-1"]
[WhiteElo "2289"]
[BlackElo "2484"]
[Annotator "RC"]
[PlyCount "118"]
[EventDate "2018.12.27"]
[EventType "swiss"]
[EventCountry "ITA"]
[TimeControl "5400+30"]
[WhiteClock "0:05:56"]
[BlackClock "0:01:43"]

1. d4 {[%emt 0:02:25]} Nf6 {[%emt 0:00:52]} 2. Bf4 {[%emt 0:00:15]} b6 {[%emt 0:01:01]} 3. e3 {[%emt 0:00:13]} Bb7 {[%emt 0:00:04]} 4. Nd2 {[%emt 0:00:11]} g6 {[%emt 0:00:32]} 5. Ngf3 {[%emt 0:00:13]} Bg7 {[%emt 0:00:27]} 6. h3 {[%emt 0:00:06]} O-O {[%emt 0:00:13]} 7. Bd3 {[%emt 0:00:07]} d6 {[%emt 0:00:50]} 8. Qe2 {[%emt 0:07:03]} Nbd7 {[%emt 0:00:52]} 9. Ba6 {[%emt 0:04:47]} Qc8 {[%emt 0:00:19]} 10. Bxb7 {[%emt 0:00:02]} Qxb7 {[%emt 0:00:06]} 11. O-O {[%emt 0:00:28]} Rfe8 {[%emt 0:04:18]} 12. a4 {[%emt 0:01:58]} a6 {[%emt 0:04:01]} 13. Bh2 {[%emt 0:05:09]} c5 {[%emt 0:04:46]} 14. c3 {[%emt 0:19:48]} Ne4 {[%emt 0:09:49]} 15. Nxe4 {[%emt 0:01:16]} Qxe4 {[%emt 0:00:06]} 16. b4 {[%emt 0:08:07]} Rec8 {[%emt 0:09:02]} 17. bxc5 {[%emt 0:10:45]} bxc5 {[%emt 0:00:32]} 18. Rfc1 {[%emt 0:02:09]} h6 {[%emt 0:05:09]} 19. Rab1 {[%emt 0:00:51]} Qc6 {[%emt 0:02:50]} 20. Qc4 {[%emt 0:02:48]} Rab8 {[%emt 0:10:47]} 21. d5 {[%emt 0:05:05]} Qa8 {[%emt 0:00:43]} 22. Bf4 {[%emt 0:02:04]} Nb6 {[%emt 0:02:17]} 23. Rxb6 {[%emt 0:00:59]} Rxb6 {[%emt 0:00:20]} 24. e4 {[%emt 0:00:09]} Qb7 {[%emt 0:06:21]} 25. e5 {[%emt 0:05:11]} dxe5 {[%emt 0:04:00]} 26. Nxe5 {[%emt 0:02:33]} Bxe5 {[%emt 0:07:51]} 27. Bxe5 {[%emt 0:00:06]} Rd8 {[%emt 0:00:35]} 28. Rd1 {[%emt 0:03:01]} Rb1 {[%emt 0:00:49]} 29. Rxb1 {[%emt 0:00:03]} Qxb1+ {[%emt 0:00:04]} 30. Kh2 {[%emt 0:00:08]} Qb7 {[%emt 0:03:10]} 31. Qxc5 {[%emt 0:00:45]} Rxd5 {[%emt 0:00:19]} 32. Qe3 {[%emt 0:00:03]} Kh7 {[%emt 0:05:19]} 33. Bg3 {[%emt 0:01:39]} Ra5 {[%emt 0:01:46]} 34. Qf4 {[%emt 0:02:29]} f6 {[%emt 0:01:10]} 35. Qc4 {[%emt 0:00:48]} Kg7 {[%emt 0:00:57]} 36. Bc7 {[%emt 0:00:21]} Qc8 {[%emt 0:03:18]} 37. Qc6 {[%emt 0:00:51]} Re5 {[%emt 0:00:21]} 38. Qb6 {[%emt 0:01:09]} Re6 {[%emt 0:00:12]} 39. Qc5 {[%emt 0:02:39]} Qd7 {[%emt 0:00:46]} 40. Bf4 {[%emt 0:04:15]} Qxa4 {[%emt 0:00:21]} 41. Be3 {[%emt 0:00:02]} Qd7 {[%emt 0:00:44]} 42. g3 {[%emt 0:00:31]} Rc6 {[%emt 0:00:21]} 43. Qb4 {[%emt 0:00:07]} Qc7 {[%emt 0:00:41]} 44. Bf4 {[%emt 0:00:37]} e5 {[%emt 0:01:33]} 45. Bd2 {[%emt 0:01:50]} Qd6 {[%emt 0:00:27]} 46. Qa4 {[%emt 0:00:19]} Rc7 {[%emt 0:00:33]} 47. Qa2 {[%emt 0:00:49]} Qc6 {[%emt 0:01:27]} 48. Be3 {[%emt 0:00:30]} Rd7 {[%emt 0:01:14]} 49. Qa3 {[%emt 0:01:06]} g5 {[%emt 0:01:51]} 50. g4 {[%emt 0:01:35]} Rc7 {[%emt 0:00:44]} 51. Qa5 {[%emt 0:00:41]} Rd7 {[%emt 0:00:25]} 52. Qb4 {[%emt 0:00:51]} Qb7 {[%emt 0:00:17]} 53. Qa4 {[%emt 0:00:03]} Rc7 {[%emt 0:01:03]} 54. Qa3 {[%emt 0:01:26]} Rc4 {[%emt 0:00:46]} 55. Kg1 {[%emt 0:00:28]} h5 {[%emt 0:01:00]} 56. gxh5 {[%emt 0:01:12]} Rh4 {[%emt 0:00:11]} 57. Kh2 {[%emt 0:01:18]} Qd7 {[%emt 0:02:15]} 58. Kg1 {[%emt 0:00:23]} Rxh3 {[%emt 0:00:08]} 59. h6+ {[%emt 0:01:00]} Kh7 {[%emt 0:00:39]} 0-1

[Event "3rd Vergani Cup 2018"]
[Site "Montebelluna"]
[Date "2019.01.02"]
[Round "?"]
[White "Seresin, Francesco"]
[Black "Ajay Krishna, S."]
[Result "1-0"]
[WhiteElo "2258"]
[BlackElo "2289"]
[PlyCount "42"]
[EventDate "2018.12.27"]
[EventType "swiss"]
[EventCountry "ITA"]
[TimeControl "5400+30"]
[WhiteClock "1:01:08"]
[BlackClock "0:36:25"]

1. d4 {[%emt 0:02:05]} c5 {[%emt 0:00:16]} 2. d5 {[%emt 0:01:21]} e6 {[%emt 0:00:21]} 3. c4 {[%emt 0:01:22]} b5 {[%emt 0:00:38]} 4. cxb5 {[%emt 0:01:09]} Nf6 {[%emt 0:00:39]} 5. Nc3 {[%emt 0:00:22]} a6 {[%emt 0:03:15]} 6. e3 {[%emt 0:03:03]} exd5 {[%emt 0:04:38]} 7. Nxd5 {[%emt 0:02:50]} Bb7 {[%emt 0:00:25]} 8. Nxf6+ {[%emt 0:01:54]} Qxf6 {[%emt 0:00:24]} 9. Nf3 {[%emt 0:02:37]} Be7 {[%emt 0:00:53]} 10. bxa6 {[%emt 0:01:48]} Nxa6 {[%emt 0:00:09]} 11. Be2 {[%emt 0:02:27]} Nb4 {[%emt 0:01:51]} 12. a3 {[%emt 0:13:12]} Be4 {[%emt 0:11:31]} 13. O-O {[%emt 0:01:56]} Nc2 {[%emt 0:06:25]} 14. Rb1 {[%emt 0:01:12]} Nb4 {[%emt 0:00:06]} 15. Ra1 {[%emt 0:00:14]} Bc2 {[%emt 0:00:28]} 16. axb4 {[%emt 0:07:44]} Bxd1 {[%emt 0:00:34]} 17. Rxa8+ {[%emt 0:00:14]} Bd8 {[%emt 0:00:01]} 18. Rxd1 {[%emt 0:02:02]} cxb4 {[%emt 0:00:14]} 19. b3 {[%emt 0:13:19]} O-O {[%emt 0:01:03]} 20. Rd3 {[%emt 0:39:09]} d5 21. Rxd5 {[%emt 0:00:00]} Be7 {[%emt 0:05:31]} 1-0

[Event "3rd Vergani Cup 2018"]
[Site "Montebelluna"]
[Date "2019.01.02"]
[Round "?"]
[White "Gallana, Marco"]
[Black "Velten, Paul"]
[Result "0-1"]
[WhiteElo "2247"]
[BlackElo "2485"]
[Annotator "RC"]
[PlyCount "88"]
[EventDate "2018.12.27"]
[EventType "swiss"]
[EventCountry "ITA"]
[TimeControl "5400+30"]
[WhiteClock "0:50:42"]
[BlackClock "0:00:31"]

1. d4 {[%emt 0:00:00]} d5 {[%emt 0:00:26]} 2. Nf3 {[%emt 0:00:00]} Nf6 {[%emt 0:00:15]} 3. c4 {[%emt 0:00:03]} dxc4 {[%emt 0:00:10]} 4. e3 {[%emt 0:01:10]} Bg4 {[%emt 0:00:08]} 5. Bxc4 {[%emt 0:00:22]} e6 {[%emt 0:00:29]} 6. Nc3 {[%emt 0:00:56]} Nc6 {[%emt 0:00:41]} 7. h3 {[%emt 0:05:00]} Bh5 {[%emt 0:00:12]} 8. a3 {[%emt 0:00:46]} Bd6 {[%emt 0:00:31]} 9. Be2 {[%emt 0:07:11]} O-O {[%emt 0:00:39]} 10. O-O {[%emt 0:06:13]} a6 {[%emt 0:01:09]} 11. e4 {[%emt 0:04:36]} Bxf3 {[%emt 0:00:52]} 12. Bxf3 {[%emt 0:07:27]} Nxd4 {[%emt 0:00:30]} 13. Be3 {[%emt 0:00:30]} Be5 {[%emt 0:01:27]} 14. Bg4 {[%emt 0:06:03]} Nc6 {[%emt 0:04:29]} 15. Qf3 {[%emt 0:21:45]} Bxc3 {[%emt 0:01:14]} 16. bxc3 {[%emt 0:00:13]} Ne5 {[%emt 0:00:12]} 17. Qf4 {[%emt 0:05:18]} Ng6 {[%emt 0:00:26]} 18. Qf3 {[%emt 0:02:09]} Qd6 {[%emt 0:06:40]} 19. Bg5 {[%emt 0:03:34]} Nxg4 {[%emt 0:04:32]} 20. Qxg4 {[%emt 0:00:19]} Qc6 {[%emt 0:01:53]} 21. h4 {[%emt 0:02:59]} f6 {[%emt 0:04:14]} 22. Be3 {[%emt 0:01:33]} Ne5 {[%emt 0:01:23]} 23. Qf4 {[%emt 0:01:32]} Rad8 {[%emt 0:00:33]} 24. h5 {[%emt 0:00:54]} b6 {[%emt 0:00:47]} 25. Rad1 {[%emt 0:02:37]} h6 {[%emt 0:02:57]} 26. Qg3 {[%emt 0:09:36]} Nf7 {[%emt 0:00:55]} 27. Qg4 {[%emt 0:00:45]} e5 {[%emt 0:00:17]} 28. c4 {[%emt 0:01:06]} Qb7 {[%emt 0:04:55]} 29. Rd5 {[%emt 0:02:38]} Qc8 {[%emt 0:00:46]} 30. Qg6 {[%emt 0:01:16]} Rxd5 {[%emt 0:03:59]} 31. cxd5 {[%emt 0:00:08]} Qd7 {[%emt 0:00:11]} 32. Rc1 {[%emt 0:00:19]} a5 {[%emt 0:02:40]} 33. Rc6 {[%emt 0:00:58]} Nd8 {[%emt 0:00:14]} 34. Rc4 {[%emt 0:00:54]} f5 {[%emt 0:02:32]} 35. exf5 {[%emt 0:00:55]} Rf6 {[%emt 0:00:10]} 36. Qg3 {[%emt 0:01:50]} Nf7 {[%emt 0:00:06]} 37. Rg4 {[%emt 0:00:42]} Nd6 {[%emt 0:01:31]} 38. Qxe5 {[%emt 0:01:29]} Rxf5 {[%emt 0:00:06]} 39. Qe6+ {[%emt 0:02:19]} Qxe6 {[%emt 0:00:34]} 40. dxe6 {[%emt 0:00:05]} Rxh5 {[%emt 0:00:30]} 41. Bf4 {[%emt 0:01:32]} Ne8 {[%emt 0:01:59]} 42. a4 {[%emt 0:00:40]} Kf8 {[%emt 0:00:15]} 43. Rg3 {[%emt 0:00:36]} Rf5 {[%emt 0:01:50]} 44. Rg4 {[%emt 0:00:31]} h5 {[%emt 0:00:59]} 0-1

[Event "3rd Vergani Cup 2018"]
[Site "Montebelluna"]
[Date "2019.01.02"]
[Round "?"]
[White "Gallana, Marco"]
[Black "Loiacono, Leonardo"]
[Result "1/2-1/2"]
[WhiteElo "2247"]
[BlackElo "2300"]
[PlyCount "60"]
[EventDate "2018.12.27"]
[EventType "swiss"]
[EventCountry "ITA"]
[TimeControl "5400+30"]
[WhiteClock "0:14:51"]
[BlackClock "0:16:58"]

1. Nf3 {[%emt 0:00:00]} d5 {[%emt 0:01:02]} 2. d4 {[%emt 0:00:18]} Nf6 {[%emt 0:00:05]} 3. c4 {[%emt 0:00:16]} c6 {[%emt 0:00:04]} 4. e3 {[%emt 0:00:28]} Bg4 {[%emt 0:00:25]} 5. Nc3 {[%emt 0:00:26]} e6 {[%emt 0:00:37]} 6. Qb3 {[%emt 0:02:13]} Qb6 {[%emt 0:00:21]} 7. h3 {[%emt 0:00:44]} Bh5 {[%emt 0:00:44]} 8. Nh4 {[%emt 0:01:13]} Qxb3 {[%emt 0:00:53]} 9. axb3 {[%emt 0:00:15]} Na6 {[%emt 0:00:05]} 10. g4 {[%emt 0:13:02]} Nb4 {[%emt 0:00:27]} 11. Kd1 {[%emt 0:00:19]} Bg6 {[%emt 0:00:49]} 12. Nxg6 {[%emt 0:00:58]} hxg6 {[%emt 0:00:15]} 13. Be2 {[%emt 0:00:23]} g5 {[%emt 0:18:30]} 14. Bd2 {[%emt 0:00:49]} Be7 {[%emt 0:14:18]} 15. Ra4 {[%emt 0:10:34]} Kd7 {[%emt 0:06:48]} 16. f3 {[%emt 0:04:34]} Kc7 {[%emt 0:07:48]} 17. Be1 {[%emt 0:21:36]} a5 {[%emt 0:04:59]} 18. Na2 {[%emt 0:04:27]} Nxa2 {[%emt 0:03:03]} 19. Rxa2 {[%emt 0:00:07]} b6 {[%emt 0:00:19]} 20. Kc2 {[%emt 0:01:43]} dxc4 {[%emt 0:02:27]} 21. bxc4 {[%emt 0:00:26]} c5 {[%emt 0:00:31]} 22. Ra1 {[%emt 0:00:21]} Nd7 {[%emt 0:05:39]} 23. Rd1 {[%emt 0:02:54]} Bd6 {[%emt 0:03:59]} 24. Bf2 {[%emt 0:01:47]} cxd4 {[%emt 0:07:08]} 25. exd4 {[%emt 0:01:42]} Bf4 {[%emt 0:00:24]} 26. h4 {[%emt 0:07:47]} gxh4 {[%emt 0:00:12]} 27. Bxh4 {[%emt 0:00:13]} g5 {[%emt 0:00:04]} 28. Bf2 {[%emt 0:00:14]} e5 {[%emt 0:04:08]} 29. Bd3 {[%emt 0:02:58]} exd4 {[%emt 0:01:28]} 30. Be4 {[%emt 0:05:15]} Rad8 {[%emt 0:02:37]} 1/2-1/2